bitfinex-derivatives/quotes_ETHF0:USTF0_20250320
["timestamp","ask_amount","ask_price","bid_price","bid_amount"]
[1742466028211,3.05838303,1978.4,1978.2,40.8]
[1742466028915,3.05838303,1978.4,1978.3,1.01155]
[1742466029102,3.05838303,1978.4,1978.3,4.09865]
[1742466029316,3.05838303,1978.4,1978.2,40.8]
[1742466029710,0.00758303,1978.4,1978.3,1.01155]
[1742466029910,0.00758303,1978.4,1978.3,4.09865]
[1742466030313,3.17808303,1978.4,1978.3,1.01155]
[1742466031109,3.03e-06,1978.4,1978.3,1.01155]
[1742466032018,3.20780303,1978.4,1978.2,40.8]
[1742466032218,3.1705,1978.3,1978.1,0.00758303]
[1742466032416,3.1705,1978.3,1978.1,1.01921303]
[1742466032717,3.1705,1978.3,1978.1,0.00758303]
[1742466033018,3.2078,1978.2,1977.2,46.716]
[1742466033216,3.2078,1977.5,1977.2,46.716]
[1742466033517,3.2078,1977.3,1977.2,46.716]
[1742466033717,1.01217,1977.1,1976.8,2.9789]
[1742466033919,3.2078,1976.9,1976.7,46.721]
[1742466034311,3.0078,1976.8,1976.7,47.73337]
[1742466035021,3.2078,1976.9,1976.8,1.01232]
[1742466035720,6.22318303,1977.0,1976.9,1.01227]
[1742466036108,6.22318303,1977.0,1976.8,40.8]
[1742466037510,6.22318303,1977.0,1976.6,2.98648]
[1742466037511,4.728,1976.9,1976.6,0.00758]
[1742466037716,3.2078,1976.7,1976.3,1.01252]
[1742466037912,3.2078,1976.4,1975.9,3.2078]
[1742466038113,3.2408,1976.3,1975.9,3.0954]
[1742466038417,3.2078,1976.6,1976.5,1.01257]
[1742466038618,3.2408,1976.5,1976.1,40.8]
[1742466038824,7.9878,1976.5,1976.1,40.8]
[1742466039123,3.2078,1976.3,1976.1,40.8]
[1742466039316,3.2078,1976.5,1975.6,3.2078]
[1742466039519,3.2078,1976.5,1975.9,3.1445]
[1742466039714,3.2078,1976.3,1975.9,3.1445]
[1742466039914,3.2078,1976.3,1975.7,46.747]
[1742466039915,3.2078,1976.1,1975.7,46.747]
[1742466040120,3.2078,1976.0,1975.7,49.8915]
[1742466040321,3.2078,1975.8,1975.7,90.6915]
[1742466040517,9.02275,1975.8,1975.0,3.2078]
[1742466040716,9.02275,1975.8,1975.0,2.5333]
[1742466040717,3.2078,1975.6,1975.0,2.5333]
[1742466040920,8.01738303,1975.8,1975.2,3.2078]
[1742466041118,3.2078,1975.6,1975.3,3.1445]
[1742466041318,3.2078,1975.4,1974.6,3.1182]
[1742466041522,4.843,1975.5,1975.0,3.1445]
[1742466041721,3.09602702,1975.1,1975.0,3.1445]
[1742466042020,9.1678,1975.5,1975.0,6.3523]
[1742466042222,3.2078,1975.6,1975.1,51.613]
[1742466042420,3.2078,1975.2,1974.6,4.13171]
[1742466042626,3.2078,1975.0,1974.9,2.9773]
[1742466043023,11.59316,1975.0,1974.4,46.762]
[1742466043222,3.2078,1974.8,1974.7,1.0135]
[1742466043527,3.0559,1974.9,1974.7,1.0135]
[1742466043717,3.2078,1975.0,1974.9,1.01339]
[1742466043921,3.2078,1975.0,1974.5,6.1851]
[1742466044115,3.2078,1975.0,1974.9,1.01339]
[1742466044319,9.1678,1975.0,1974.3,3.2078]
[1742466044519,3.2078,1974.8,1974.4,2.9773]
[1742466044726,3.2078,1974.8,1974.7,1.0135]
[1742466044914,3.21538303,1974.8,1974.7,1.0135]
[1742466045119,0.00758303,1974.8,1974.7,1.0135]
[1742466045726,3.2078,1975.4,1974.9,2.53349]
[1742466045919,6.2532,1975.8,1975.6,1.01302]
[1742466046224,3.2078,1976.1,1976.0,1.0128]
[1742466046418,3.0454,1976.0,1975.3,3.2078]
[1742466046619,3.2078,1975.9,1975.4,2.983]
[1742466046819,0.00758303,1975.8,1975.5,0.00758303]
[1742466047019,3.2078,1975.7,1975.6,40.8]
[1742466047925,6.2532,1975.7,1975.5,0.00758303]
[1742466048115,4.928,1975.6,1975.5,0.00758303]
[1742466048315,3.0454,1975.6,1975.3,40.8]
[1742466048516,3.2078,1975.4,1974.5,46.782]
[1742466048819,3.2078,1974.7,1974.5,1.01357]
[1742466049022,3.2078,1975.0,1974.0,48.9578]
[1742466049219,3.2078,1975.0,1974.5,3.2078]
[1742466049423,3.2078,1975.0,1974.9,1.01339]
[1742466049622,3.2078,1975.9,1974.9,8.1658]
[1742466049824,3.2078,1976.2,1976.1,1.01278]
[1742466050019,3.2078,1976.2,1975.9,3.0203]
[1742466050325,3.2078,1976.2,1976.1,1.01278]
[1742466050531,3.2078,1976.2,1975.9,3.0203]
[1742466050837,3.179,1976.2,1975.9,3.0203]
[1742466051131,3.2078,1976.0,1975.9,4.03318]
[1742466051520,3.2078,1976.0,1975.9,3.0203]
[1742466051824,3.2078,1976.0,1975.9,4.03327]
[1742466052130,3.21538303,1976.3,1975.9,3.0203]
[1742466052321,3.21538303,1976.3,1975.9,4.03325]
[1742466052523,3.2078,1976.0,1975.9,3.0203]
[1742466052719,3.2078,1976.0,1975.7,46.782]
[1742466052926,3.2078,1976.0,1975.6,3.1636]
[1742466052927,3.2078,1975.8,1975.6,3.1636]
[1742466053120,3.2078,1975.8,1975.1,3.1636]
[1742466053427,3.2078,1975.3,1974.7,46.782]
[1742466053629,3.1841,1975.2,1974.9,3.1636]
[1742466053824,3.2078,1975.0,1974.7,46.782]
[1742466054029,3.19168303,1975.2,1974.8,3.1636]
[1742466054232,3.2078,1974.9,1974.8,4.17715]
[1742466054628,6.39948303,1975.2,1975.1,1.01339]
[1742466055025,3.21538303,1975.2,1975.1,1.01339]
[1742466055734,0.00758303,1975.2,1975.1,41.81339]
[1742466056038,3.2078,1975.7,1975.6,1.01309]
[1742466056230,3.2078,1975.9,1975.4,3.2078]
[1742466056431,3.2078,1975.9,1975.5,3.0975]
[1742466056626,7.9317,1976.1,1975.1,40.8]
[1742466056627,1.01315,1975.6,1975.1,40.8]
[1742466056832,6.3,1975.5,1975.2,3.0975]
[1742466057135,3.21538303,1975.5,1975.4,1.01324]
[1742466057337,3.21538303,1975.5,1975.2,3.10508303]
[1742466057828,3.2078,1975.3,1975.2,0.00758303]
[1742466058028,3.2078,1975.3,1974.4,46.788]
[1742466058332,3.2078,1974.8,1974.6,3.0275]
[1742466058526,3.2078,1975.0,1974.7,1.01357]
[1742466058730,3.2078,1975.0,1974.8,3.0275]
[1742466059230,3.2265,1974.9,1974.8,3.0275]
[1742466059432,3.2265,1974.9,1974.8,4.04105]
[1742466059633,3.2265,1974.9,1974.4,46.788]
[1742466059833,3.2265,1974.9,1974.5,3.0275]
[1742466059834,3.2078,1974.7,1974.5,3.0275]
[1742466060035,8.1315,1974.9,1974.7,1.0136]
[1742466060227,3.2078,1975.0,1974.9,1.01349]
[1742466060431,3.2078,1975.0,1974.5,3.0275]
[1742466060736,3.2078,1974.7,1974.5,4.04118]
[1742466060933,3.2078,1974.7,1974.5,3.0275]
[1742466061126,3.2078,1974.7,1974.5,4.04118]
[1742466061326,3.132,1974.6,1974.5,4.04118]
[1742466061928,4.905,1974.8,1974.5,3.0275]
[1742466062125,3.2078,1974.9,1974.5,3.0275]
[1742466062332,3.2078,1974.9,1974.8,1.01355]
[1742466062537,6.458,1975.3,1974.6,3.2078]
[1742466062733,0.00758303,1975.5,1975.2,3.2078]
[1742466063038,0.00758303,1975.5,1975.4,1.01324]
[1742466063534,10.863,1976.1,1975.8,1.01303]
[1742466063734,3.2078,1976.0,1975.2,3.2078]
[1742466063943,3.2078,1974.8,1973.3,3.7142]
[1742466064239,3.2078,1974.0,1973.2,1.80008237]
[1742466064531,56.20888,1974.7,1973.2,1.80008237]
[1742466064532,3.2078,1973.3,1973.2,1.80008237]
[1742466064737,3.44588,1973.3,1973.2,6.02225237]
[1742466064936,12.55008,1973.8,1973.2,3.2078]
[1742466065139,3.1442,1973.8,1973.2,8.4968]
[1742466065342,3.44588,1974.3,1974.2,1.01385]
[1742466065543,0.00758303,1974.4,1974.3,1.0138]
[1742466065840,3.2078,1975.0,1974.7,1.01358]
[1742466066036,5.303,1975.3,1975.1,1.01337]
[1742466066238,6.2038,1976.0,1975.2,3.2078]
[1742466066427,2.996,1976.0,1975.1,3.2078]
[1742466066627,2.996,1976.0,1975.7,3.2078]
[1742466066838,2.996,1976.0,1975.7,44.0078]
[1742466067029,8.5078,1976.6,1975.9,3.2078]
[1742466067229,5.3,1976.6,1975.9,3.2078]
[1742466067430,3.2078,1976.9,1976.1,3.2078]
[1742466067643,1.01268,1976.3,1976.1,3.2078]
[1742466067836,1.01268,1976.3,1975.7,0.00758303]
[1742466067837,3.2078,1976.3,1975.7,0.00758303]
[1742466068033,1.01293,1975.8,1975.7,0.00758303]
[1742466068336,5.311,1975.8,1975.2,3.0386]
[1742466068730,3.17078303,1976.2,1976.1,1.01278]
[1742466068934,3.17078303,1976.2,1975.3,3.2078]
[1742466068935,3.17078303,1976.2,1975.5,8.5208]
[1742466069238,0.00758303,1976.2,1975.6,3.0386]
[1742466069443,0.00758303,1976.2,1975.9,1.01284]
[1742466069444,2.96578303,1976.2,1975.9,1.01284]
[1742466069644,2.96578303,1976.2,1976.0,3.0386]
[1742466069840,8.5208,1976.1,1975.7,0.00758303]
[1742466070140,3.2078,1975.9,1975.2,2.9289]
[1742466070341,3.21538303,1976.2,1975.6,3.2078]
[1742466070532,3.2078,1976.1,1974.9,3.0171]
[1742466070737,3.2078,1975.9,1975.3,3.2078]
[1742466070933,3.2078,1975.9,1975.4,2.9289]
[1742466071138,3.2078,1976.0,1975.4,2.93648303]
[1742466071443,3.2078,1975.5,1975.4,0.00758303]
[1742466071740,3.2078,1975.0,1973.7,7.81458281]
[1742466071948,3.2078,1974.0,1973.2,7.81458281]
[1742466072148,3.2078,1974.0,1973.7,2.9289]
[1742466072444,2.53391,1974.6,1973.3,3.21538303]
[1742466072445,3.2078,1973.8,1973.3,3.21538303]
[1742466072643,3.2078,1973.4,1973.2,7.81458281]
[1742466073041,5.418,1973.5,1973.3,3.21538303]
[1742466073238,0.00758303,1973.7,1973.6,1.01406]
[1742466073446,3.2078,1974.1,1973.5,3.1881]
[1742466073743,3.2042,1974.5,1973.5,6.40348303]
[1742466073744,3.2078,1973.8,1973.5,6.40348303]
[1742466073949,3.2078,1973.8,1973.6,3.21538303]
[1742466074239,3.2078,1973.8,1973.7,3.1881]
[1742466074547,3.2078,1973.8,1973.1,3.2301]
[1742466074743,3.2078,1973.8,1973.0,4.07585]
[1742466074744,4.12775,1973.7,1973.6,0.00758303]
[1742466074943,4.12775,1973.7,1973.2,6.40348303]
[1742466074944,6.3215,1973.7,1972.9,46.808]
[1742466075148,6.3215,1973.7,1972.9,3.1881]
[1742466075149,3.2078,1973.0,1972.9,3.1881]
[1742466075442,3.2078,1973.3,1973.2,1.01423]
[1742466075641,3.59806064,1973.6,1973.0,3.21538303]
[1742466075840,3.2078,1973.2,1973.1,4.22970303]
[1742466076045,0.39026064,1973.3,1973.2,1.01427]
[1742466076242,0.00758303,1973.9,1973.7,1.01399]
[1742466076440,3.21538303,1973.9,1973.5,1.01408]
[1742466076644,3.21538303,1973.9,1973.4,5.463]
[1742466076949,3.21538303,1973.9,1973.7,1.01401]
[1742466077241,3.21538303,1973.9,1973.6,40.8]
[1742466077242,3.21538303,1973.9,1973.4,3.21538303]
[1742466077442,5.463,1973.8,1973.5,3.21538303]
[1742466077643,0.00758303,1973.9,1973.3,3.21538303]
[1742466077846,0.00758303,1973.9,1973.6,40.8]
[1742466078043,3.2078,1973.8,1973.6,40.8]
[1742466078249,3.2078,1973.8,1973.3,1.01408]
[1742466078447,3.21538303,1973.9,1973.4,3.21538303]
[1742466078647,3.2078,1973.6,1973.4,3.21538303]
[1742466078849,0.00758303,1973.9,1973.5,47.22318303]
[1742466079051,0.00758303,1973.9,1973.6,5.469]
[1742466079247,0.00758303,1973.9,1973.6,8.68438303]
[1742466079445,0.00758303,1973.9,1973.2,6.3078]
[1742466079446,3.2078,1973.7,1973.2,3.1]
[1742466079751,3.2078,1973.4,1972.9,46.825]
[1742466080049,3.2078,1973.1,1973.0,3.21538303]
[1742466080252,8.79304725,1973.6,1973.1,3.21538303]
[1742466080441,3.2078,1973.6,1973.1,46.825]
[1742466080643,0.00758303,1973.9,1973.4,3.2078]
[1742466080839,0.00758303,1973.9,1973.5,6.2566]
[1742466081047,0.00758303,1973.9,1973.7,1.01389]
[1742466081247,3.2078,1973.8,1973.5,6.26418303]
[1742466081443,3.2078,1973.8,1973.6,3.21538303]
[1742466081642,0.00758303,1973.9,1973.6,3.21538303]
[1742466081847,0.00758303,1973.9,1973.8,1.01386]
[1742466082047,3.2078,1974.4,1973.8,50.0418]
[1742466082246,3.2078,1974.4,1973.9,6.35628303]
[1742466082552,3.2078,1974.4,1974.0,40.8]
[1742466082745,3.2078,1974.2,1974.0,44.01538303]
[1742466082947,3.2078,1974.2,1974.0,40.8]
[1742466083255,0.00760283,1974.3,1974.2,1.01365]
[1742466083647,0.00760283,1974.3,1974.2,3.21538303]
[1742466084153,0.00760283,1974.3,1974.2,4.22903303]
[1742466084449,3.2078,1974.6,1974.5,1.0135]
[1742466084651,13.66961588,1975.2,1974.4,11.24155]
[1742466084950,3.2078,1975.2,1974.7,3.2078]
[1742466085151,8.7078,1975.4,1974.8,3.21538303]
[1742466085340,3.2532,1975.6,1975.3,1.01309]
[1742466085341,6.461,1975.6,1975.3,1.01309]
[1742466085545,6.461,1975.6,1975.1,3.2078]
[1742466085546,0.00760283,1975.3,1975.1,3.2078]
[1742466085742,0.00760283,1975.3,1975.2,4.22852303]
[1742466086150,11.9405,1976.3,1975.8,1.01281]
[1742466086349,2.53075,1976.9,1975.4,3.2078]
[1742466086350,3.2078,1976.1,1975.4,3.2078]
[1742466086557,3.2078,1976.1,1975.8,1.01283]
[1742466086956,3.2078,1976.5,1975.9,6.42318303]
[1742466087153,3.2078,1976.8,1976.0,5.487]
[1742466087358,0.00760283,1976.4,1976.0,8.70998586]
[1742466087653,0.00760283,1976.4,1976.3,1.01257]
[1742466087857,0.00760283,1976.4,1976.1,6.42318303]
[1742466088058,0.00760283,1976.4,1976.2,3.21538303]
[1742466088252,0.00760283,1976.4,1976.3,1.01257]
[1742466088451,3.2078,1977.1,1976.8,1.01232]
[1742466088645,8.6908,1977.1,1976.9,1.01225]
[1742466088851,3.2871,1977.3,1976.6,3.2078]
[1742466088852,3.2871,1977.3,1976.6,46.82]
[1742466089156,3.2078,1977.5,1976.7,6.42318303]
[1742466089350,3.2078,1977.3,1976.7,6.42318303]
[1742466089552,3.21540283,1977.3,1976.8,3.21538303]
[1742466089859,3.21540283,1977.3,1976.9,44.01538303]
[1742466090257,3.21540283,1977.3,1977.0,3.21538303]
[1742466090461,3.21540283,1977.3,1977.1,1.01214]
[1742466090653,0.00760283,1977.3,1977.2,1.01211]
[1742466090848,0.00760283,1977.3,1977.2,3.21538303]
[1742466091159,0.00760283,1977.3,1977.1,0.00760283]
[1742466091962,0.00760283,1977.3,1977.1,3.22298586]
[1742466092161,3.2078,1977.2,1977.1,3.22298586]
[1742466092363,3.2078,1977.2,1977.1,4.23514586]
[1742466092867,0.00760283,1977.3,1977.2,1.01211]
[1742466093055,0.00760283,1977.3,1977.2,7.48889303]
[1742466093250,0.00760283,1977.3,1977.2,6.47678303]
[1742466093560,0.00760283,1977.3,1977.1,0.00760283]
[1742466093754,3.21540283,1977.3,1977.2,3.21538303]
[1742466094055,0.00760283,1977.3,1977.2,7.48889303]
[1742466094258,0.00760283,1977.3,1977.2,6.47678303]
[1742466095562,0.00760283,1977.3,1977.2,10.69669303]
[1742466095751,8.6448,1978.0,1977.6,1.0119]
[1742466096064,8.6448,1978.0,1977.1,0.00760283]
[1742466096065,3.2078,1978.0,1977.7,3.2911]
[1742466096461,3.2078,1978.0,1977.8,3.21538303]
[1742466096855,6.2217,1978.0,1977.7,3.2911]
[1742466097052,3.2078,1977.8,1977.7,3.2911]
[1742466097351,9.63762,1977.8,1977.1,3.21540283]
[1742466097558,8.6258,1977.8,1977.4,3.3016]
[1742466097958,3.2078,1977.8,1977.5,3.21538303]
[1742466098264,3.2078,1977.8,1977.6,3.3016]
[1742466098564,3.2078,1977.8,1977.7,1.01186]
[1742466098766,3.2078,1977.8,1977.7,3.21538303]
[1742466098963,3.2078,1977.8,1977.7,6.51698303]
[1742466099967,3.2078,1977.8,1977.4,3.2078]
[1742466100171,5.402,1978.0,1977.1,5.41660283]
[1742466100172,3.172,1977.7,1977.5,3.21538303]
[1742466100465,6.3798,1977.7,1977.2,6.51858303]
[1742466100668,6.3798,1977.7,1977.3,3.21538303]
[1742466100959,3.2078,1977.7,1977.4,3.3032]
[1742466101160,3.2078,1977.7,1977.4,6.51858303]
[1742466101362,3.2078,1977.7,1977.5,3.21538303]
[1742466101564,3.2078,1977.7,1977.6,3.3032]
[1742466101762,3.2078,1977.7,1977.5,3.21538303]
[1742466101965,3.172,1977.6,1977.1,6.51860283]
[1742466102157,3.2078,1977.3,1976.7,46.78]
[1742466102469,3.2078,1977.0,1976.8,3.21538303]
[1742466102768,12.4013406,1976.9,1975.6,46.764]
[1742466102964,4.22055,1976.0,1975.7,6.51858303]
[1742466103266,1.01283,1975.8,1975.7,6.51858303]
[1742466103473,3.21540283,1976.0,1975.7,44.11080283]
[1742466103660,0.00760283,1976.0,1975.9,1.01276]
[1742466103861,0.00760283,1976.0,1975.9,4.27126]
[1742466104065,0.00760283,1976.0,1975.9,7.48664303]
[1742466104263,0.00760283,1976.0,1975.9,3.2585]
[1742466104461,1.01281,1975.8,1975.7,40.80760283]
[1742466104762,3.2078,1975.8,1975.2,3.2585]
[1742466104963,3.2078,1975.6,1975.3,3.21538303]
[1742466105166,1.01297,1975.5,1975.4,40.8]
[1742466105463,3.2078,1975.6,1975.4,45.02835303]
[1742466105671,8.6163,1975.7,1975.5,3.21538303]
[1742466105975,0.00760283,1976.0,1975.7,1.01281]
[1742466106169,0.00760283,1976.0,1975.8,3.2955]
[1742466106365,0.00760283,1976.0,1975.8,9.71868303]
[1742466106567,0.00760283,1976.0,1975.9,3.21538303]
[1742466106767,0.00760283,1976.0,1975.9,6.51088303]
[1742466107165,1.02023283,1976.0,1975.9,6.51088303]
[1742466107469,0.00760283,1976.0,1975.3,0.00760283]
[1742466107668,6.5088,1975.9,1975.4,7.43607303]
[1742466107863,0.00760283,1976.0,1975.6,3.2078]
[1742466108071,0.00760283,1976.0,1975.9,1.01268]
[1742466108577,0.00760283,1976.0,1975.9,7.52356303]
[1742466108769,0.00760283,1976.0,1975.9,6.51088303]
[1742466108965,0.00760283,1976.0,1975.9,47.31088303]
[1742466109170,3.21540283,1976.0,1975.8,46.778]
[1742466109463,3.21540283,1976.0,1975.8,53.19968303]
[1742466109774,1.01268,1975.9,1975.8,53.19968303]
[1742466109968,4.22805283,1976.0,1975.9,3.21538303]
[1742466110169,1.01268,1975.9,1975.8,53.19968303]
[1742466110367,1.01283,1975.6,1975.5,3.2078]
[1742466110566,1.01293,1975.4,1975.3,0.00760283]
[1742466110770,1.01293,1975.4,1975.3,3.22298586]
[1742466111272,1.01293,1975.4,1975.3,0.00760283]
[1742466111483,2.53247,1975.3,1974.5,3.2078]
[1742466111672,1.01329,1974.7,1974.6,3.21538303]
[1742466111878,1.01334,1974.6,1974.5,3.21538303]
[1742466112383,1.01345,1974.6,1974.5,3.21538303]
[1742466112677,0.00760283,1974.7,1974.5,3.21538303]
[1742466112880,0.00760283,1974.7,1974.6,6.50368303]
[1742466113076,0.00760283,1974.7,1974.6,7.51711303]
[1742466113479,12.3201,1975.8,1974.8,2.53326]
[1742466113677,14.9123,1975.8,1974.9,58.5591]
[1742466113979,3.2078,1975.5,1974.9,58.5591]
[1742466114181,3.2078,1975.5,1975.0,3.21538303]
[1742466114483,3.2078,1975.3,1975.1,3.2883]
[1742466114680,0.00760283,1975.4,1975.1,9.71148303]
[1742466114977,1.01309,1975.3,1975.2,3.2883]
[1742466115175,0.00760283,1975.4,1975.2,6.50368303]
[1742466115375,0.00760283,1975.4,1975.3,3.21538303]
[1742466115578,1.02064283,1975.4,1975.3,44.01538303]
[1742466115778,1.01309,1975.3,1975.2,3.2883]
[1742466115980,3.1299,1975.3,1975.2,3.21538303]
[1742466116183,8.50740283,1975.4,1975.2,3.21538303]
[1742466116184,6.31264283,1975.4,1975.2,3.21538303]
[1742466116384,5.29960283,1975.4,1975.3,6.48638303]
[1742466116575,5.29960283,1975.4,1975.3,7.49947303]
[1742466116776,3.21540283,1975.4,1975.3,7.49947303]
[1742466116982,0.00760283,1975.4,1975.3,7.49947303]
[1742466117177,3.2078,1975.9,1975.5,1.01294]
[1742466117484,3.2078,1975.9,1975.7,1.01285]
[1742466117682,3.2078,1975.9,1975.8,3.271]
[1742466117877,1.01276,1976.0,1975.8,3.271]
[1742466118077,3.2078,1975.9,1975.8,3.271]
[1742466118478,0.00760283,1976.1,1975.8,6.48638303]
[1742466118783,0.00760283,1976.1,1976.0,1.01263]
[1742466119080,4.22013,1976.6,1976.2,1.0125]
[1742466119081,4.22015,1976.6,1976.2,1.0125]
[1742466119386,3.2078,1976.6,1976.5,1.01237]
[1742466119576,3.2078,1976.6,1976.3,3.2985]
[1742466119777,3.2078,1976.6,1976.4,3.21538303]
[1742466119982,3.2078,1976.6,1976.5,3.2985]
[1742466120187,3.2078,1976.6,1976.5,7.52625303]
[1742466120377,0.00760283,1976.7,1976.6,1.01232]
[1742466120687,1.01207,1977.1,1976.6,1.01232]
[1742466120688,3.2078,1977.2,1976.7,2.53067]
[1742466120982,46.791,1978.1,1977.1,3.2078]
[1742466120983,8.4488,1977.7,1977.1,3.2078]
[1742466121183,3.2078,1977.7,1977.2,3.2985]
[1742466121379,1.01196,1977.3,1977.2,3.2985]
[1742466121578,5.7078,1977.3,1976.7,3.2078]
[1742466121786,5.24402236,1977.4,1977.1,0.00760283]
[1742466121984,1.01198,1977.3,1977.1,0.00760283]
[1742466122184,4.21981,1977.2,1977.1,3.22298586]
[1742466122483,1.01697236,1977.4,1977.2,3.21538303]
[1742466122684,1.01693236,1977.4,1977.3,3.3048]
[1742466123086,3.39892236,1977.4,1977.3,3.3048]
[1742466123287,0.00502236,1977.4,1977.3,6.52018303]
[1742466123491,0.00502236,1977.4,1977.3,7.53214303]
[1742466124173,0.00502236,1977.4,1977.3,6.52018303]
[1742466124577,0.00502236,1977.4,1977.3,7.53214303]
[1742466124778,3.2078,1977.7,1977.6,1.01181]
[1742466125179,3.2078,1977.7,1977.6,4.22719303]
[1742466125392,3.2078,1978.1,1977.6,3.21538303]
[1742466125681,8.4208,1978.2,1977.7,6.60088303]
[1742466125874,8.4208,1978.2,1977.3,52.005]
[1742466125875,3.2078,1977.9,1977.5,3.21538303]
[1742466126075,3.2078,1977.7,1977.5,3.3855]
[1742466126376,3.2078,1977.9,1977.6,3.21538303]
[1742466126575,12.5603,1978.2,1977.7,3.3855]
[1742466126784,5.207,1978.3,1977.8,3.2078]
[1742466126984,5.207,1978.3,1978.0,1.01158]
[1742466127286,1.01145,1978.3,1978.1,3.3855]
[1742466127582,1.01147,1978.3,1978.1,3.3855]
[1742466127884,4.3854,1978.4,1978.2,3.21538303]
[1742466128089,5.2,1978.5,1978.2,3.21538303]
[1742466128090,4.21917,1978.5,1978.2,3.21538303]
[1742466128282,3.2078,1978.5,1978.3,6.51338303]
[1742466128486,3.2078,1978.5,1978.1,3.22296644]
[1742466128692,3.374,1978.4,1978.2,3.21538303]
[1742466128985,3.2078,1978.5,1978.2,7.52486303]
[1742466129187,5.96,1978.8,1978.3,6.42318303]
[1742466129389,3.2078,1978.9,1978.4,3.298]
[1742466129589,3.2078,1978.9,1978.4,6.51338303]
[1742466129890,9.92478572,1979.1,1978.9,1.01111]
[1742466130091,9.92478572,1979.1,1979.0,3.298]
[1742466130287,9.92478572,1979.1,1979.0,6.51338303]
[1742466130792,15.08678572,1979.1,1978.4,3.2455]
[1742466130986,15.08678572,1979.1,1978.2,12.5751]
[1742466130987,3.2078,1978.9,1978.5,6.52168303]
[1742466131192,5.165,1978.8,1978.5,3.3063]
[1742466131385,8.3728,1978.8,1978.6,3.21538303]
[1742466131586,8.3728,1978.8,1978.7,3.3063]
[1742466131791,3.2078,1978.9,1978.7,6.52168303]
[1742466132094,10.93585572,1979.1,1978.8,3.21538303]
[1742466132296,9.92478572,1979.1,1978.9,3.3063]
[1742466132482,9.92478572,1979.1,1978.9,6.52168303]
[1742466132682,3.2078,1979.5,1979.0,3.21538303]
[1742466132987,1.01092,1979.4,1979.1,3.3063]
[1742466133291,1.01099,1979.2,1979.1,6.52926644]
[1742466133491,3.2078,1979.3,1979.1,6.52926644]
[1742466133787,4.21874,1979.3,1979.2,6.51098303]
[1742466133979,3.2078,1979.5,1979.2,6.51098303]
[1742466134180,1.01089,1979.4,1979.3,3.21538303]
[1742466134485,1.01094,1979.3,1979.2,3.2956]
[1742466134882,1.01099,1979.2,1979.1,0.00758341]
[1742466135084,4.48039,1979.2,1979.1,3.22296644]
[1742466135487,1.01099,1979.2,1979.1,3.22296644]
[1742466135688,1.01099,1979.2,1979.1,0.00758341]
[1742466135988,6.6772,1979.3,1979.1,0.00758341]
[1742466136196,6.6772,1979.3,1979.1,3.22296644]
[1742466136494,1.01099,1979.2,1979.1,0.00758341]
[1742466136889,3.2902,1979.2,1979.1,3.22296644]
[1742466137094,3.2078,1979.3,1979.1,3.22296644]
[1742466137391,5.131,1979.4,1979.2,7.69813303]
[1742466137594,5.131,1979.4,1979.1,0.00758341]
[1742466137595,3.2078,1979.3,1979.1,0.00758341]
[1742466137793,3.2078,1979.3,1979.2,3.21538303]
[1742466137986,8.3188,1979.5,1979.2,6.68718303]
[1742466138189,4.21882,1979.3,1979.2,6.68718303]
[1742466138387,1.01107,1979.2,1979.1,0.00758341]
[1742466138585,9.39927,1979.2,1979.1,3.22296644]
[1742466138792,8.3882,1979.2,1979.1,3.22296644]
[1742466138991,5.098,1979.2,1979.1,4.23408644]
[1742466139195,5.098,1979.2,1979.1,3.22296644]
[1742466139393,5.098,1979.2,1979.1,4.23408644]
[1742466139590,3.2078,1979.3,1979.1,3.22296644]
[1742466139789,4.21882,1979.3,1979.2,3.21538303]
[1742466139990,1.01106,1979.2,1979.1,0.00758341]
[1742466140201,5.05564,1979.1,1978.0,3.413]
[1742466140387,3.2078,1978.5,1978.1,6.61448303]
[1742466140587,3.2078,1978.5,1978.2,3.3991]
[1742466140796,3.2078,1978.5,1978.2,6.61448303]
[1742466141097,11.4456,1978.7,1978.3,3.21538303]
[1742466141286,0.00751871,1978.5,1978.4,4.41055]
[1742466141486,0.00751871,1978.5,1978.4,7.62593303]
[1742466141792,0.00751871,1978.5,1978.4,6.61448303]
[1742466141993,0.00751871,1978.5,1978.4,7.62595303]
[1742466142596,0.00751871,1978.5,1978.4,6.61448303]
[1742466142902,1.01152,1978.3,1978.2,0.00758341]
[1742466143296,7.41064871,1978.5,1978.2,3.22296644]
[1742466143498,0.00751871,1978.5,1978.3,6.56188303]
[1742466143697,1.01892871,1978.5,1978.4,3.3465]
[1742466143901,1.01892871,1978.5,1978.4,6.56188303]
[1742466144101,0.00751871,1978.5,1978.4,6.56188303]
[1742466144598,5.05347,1980.0,1978.4,6.56188303]
[1742466144599,3.2078,1978.8,1978.7,1.01131]
[1742466144803,3.2078,1979.0,1978.5,3.21538303]
[1742466144991,4.219,1979.0,1978.7,1.01129]
[1742466145189,5.06,1979.2,1978.8,3.3465]
[1742466145190,8.2678,1979.2,1978.8,3.3465]
[1742466145392,5.73557,1979.2,1978.8,3.3465]
[1742466145593,1.01122,1979.0,1978.9,3.21538303]
[1742466145994,3.2078,1979.2,1978.9,3.21538303]
[1742466146202,3.2078,1979.2,1979.0,6.49278303]
[1742466146203,1.01113,1979.1,1979.0,6.49278303]
[1742466146404,3.2078,1979.2,1979.0,3.2774]
[1742466146599,4.21888,1979.2,1979.1,3.21538303]
[1742466147105,7.42438,1979.2,1979.1,3.21538303]
[1742466147699,6.4133,1979.2,1979.1,3.21538303]
[1742466148000,3.2078,1979.8,1979.1,5.74318303]
[1742466148207,5.029,1980.0,1979.4,2.52739]
[1742466148400,3.2078,1980.1,1979.8,1.01075]
[1742466148401,4.21846,1980.1,1979.8,1.01075]
[1742466148600,1.01069,1980.0,1979.9,3.2322]
[1742466148905,3.2078,1980.1,1979.9,3.2322]
[1742466149097,1.01063,1980.1,1980.0,3.21538303]